lending/lending_fUSD_20250121
["ID","MTS","AMOUNT","RATE_DAILY","PERIOD"]
[349826469,1737453062057,-500.0,0.0002,2]
[349826470,1737453062066,-3033.52,0.0002,2]
[349826471,1737453062076,-2010.66,0.0002,2]
[349826472,1737453062086,-503.45914306,0.0002,2]
[349826473,1737453062095,-500.0,0.0002,2]
[349826474,1737453062105,-500.0,0.0002,2]
[349826475,1737453062115,-685.44,0.0002,2]
[349826476,1737453062125,-973.66,0.0002,2]
[349826477,1737453062135,-564.69608324,0.0002,2]
[349826478,1737453062145,-528.70592296,0.0002,2]
[349826479,1737453062155,-500.0,0.0002,2]
[349826480,1737453062166,-500.0,0.0002,2]
[349826481,1737453062176,-1123.99,0.0002,2]
[349826482,1737453062186,-500.0,0.0002,2]
[349826483,1737453062195,-589.01,0.0002,2]
[349826484,1737453062205,-500.0,0.0002,2]
[349826485,1737453062215,-564.6043459,0.0002,2]
[349826486,1737453062225,-1065.57,0.0002,2]
[349826487,1737453062235,-500.0,0.0002,2]
[349826488,1737453062246,-500.0,0.0002,2]
[349826489,1737453062256,-500.0,0.0002,2]
[349826490,1737453062266,-984.06,0.0002,2]
[349826491,1737453062275,-1101.11,0.0002,2]
[349826492,1737453062285,-500.0,0.0002,2]
[349826493,1737453062295,-2866.42,0.0002,2]
[349826494,1737453062305,-500.0,0.0002,2]
[349826495,1737453062315,-771.9,0.0002,2]
[349826496,1737453062325,-958.34,0.0002,2]
[349826497,1737453062334,-500.0,0.0002,2]
[349826498,1737453062345,-692.7,0.0002,2]
[349826499,1737453062354,-204.52862887,0.0002,2]
[349826500,1737453062363,-731.13,0.0002,2]
[349826501,1737453062373,-500.0,0.0002,2]
[349826502,1737453062383,-500.0,0.0002,2]
[349826503,1737453062393,-701.64,0.0002,2]
[349826504,1737453062403,-500.0,0.0002,2]
[349826505,1737453062413,-904.45,0.0002,2]
[349826506,1737453062424,-1764.52,0.0002,2]
[349826507,1737453062434,-500.0,0.0002,2]
[349826508,1737453062444,-500.0,0.0002,2]
[349826509,1737453062454,-500.0,0.0002,2]
[349826510,1737453062464,-895.45,0.0002,2]
[349826511,1737453062474,-1026.43,0.0002,2]
[349826512,1737453062483,-500.0,0.0002,2]
[349826513,1737453062492,-2756.16,0.0002,2]
[349826514,1737453062501,-1406.0,0.0002,2]
[349826515,1737453062511,-1553.04,0.0002,2]
[349826516,1737453062520,-500.0,0.0002,2]
[349826517,1737453062529,-500.0,0.0002,2]
[349826518,1737453062538,-500.0,0.0002,2]
[349826519,1737453062548,-500.0,0.0002,2]
[349826520,1737453062558,-500.0,0.0002,2]
[349826521,1737453062568,-2046.98,0.0002,2]
[349826522,1737453062578,-500.0,0.0002,2]
[349826523,1737453062588,-2545.78,0.0002,2]
[349826524,1737453062597,-500.0,0.0002,2]
[349826525,1737453062607,-231.38879289,0.0002,2]
[349826526,1737453062616,-500.0,0.0002,2]
[349826527,1737453062726,-623.08678844,0.0002,2]
[349826528,1737453062736,-2648.9,0.0002,2]
[349826529,1737453062750,-500.0,0.0002,2]
[349826530,1737453062760,-500.0,0.0002,2]
[349826531,1737453062769,-771.88,0.0002,2]
[349826532,1737453062779,-500.0,0.0002,2]
[349826533,1737453062789,-500.0,0.0002,2]
[349826534,1737453062799,-250.0,0.0002,2]
[349826535,1737453062809,-250.0,0.0002,2]
[349826536,1737453062819,-524.10212941,0.0002,2]
[349826537,1737453062830,-1252.0,0.0002,2]
[349826538,1737453062840,-500.0,0.0002,2]
[349826539,1737453062850,-424.2,0.0002,2]
[349826540,1737453062860,-2167.31,0.0002,2]
[349826541,1737453062870,-500.0,0.0002,2]
[349826542,1737453062880,-500.0,0.0002,2]
[349826543,1737453062890,-687.19,0.0002,2]
[349826544,1737453062899,-500.0,0.0002,2]
[349826545,1737453062910,-1932.68,0.0002,2]
[349826546,1737453062920,-500.0,0.0002,2]
[349826547,1737453062931,-620.48,0.0002,2]
[349826548,1737453062941,-500.0,0.0002,2]
[349826549,1737453062951,-500.0,0.0002,2]
[349826550,1737453062960,-150.0,0.00020008,2]
[349826551,1737453062970,-908.42144047,0.00020021,2]
[349826552,1737453062979,-501.41216421,0.00020021,2]
[349826553,1737453062990,-1000.61388067,0.00020021,2]
[349826554,1737453062999,-1419.75885726,0.00020073,2]
[349826555,1737453063009,-300.0,0.00020082,2]
[349826556,1737453063019,-200.35494415,0.00020114,2]
[349826557,1737453063029,-168.71504878,0.00020172,2]
[349826558,1737453063039,-500.0,0.00020172,2]
[349826559,1737453063050,-591.79,0.00020172,2]
[349826560,1737453063060,-898.45,0.00020172,2]
[349826561,1737453063070,-1154.75,0.00020172,2]
[349826562,1737453063080,-500.0,0.00020172,2]
[349826563,1737453063091,-1000.0,0.00020172,2]
[349826564,1737453063102,-1093.7,0.00020172,2]
[349826565,1737453063112,-545.47,0.00020172,2]
[349826566,1737453063121,-500.0,0.00020172,2]
[349826567,1737453063132,-1476.07,0.00020172,2]
[349826568,1737453063143,-188.88535454,0.00020173,2]
[349826569,1737453063153,-37706.63317993,0.00020189,2]
[349826570,1737453063164,-198.92480562,0.00020201,2]
[349826571,1737453063175,-150.0,0.00020203,2]
[349826572,1737453063185,-150.0,0.00020262,2]
[349826573,1737453063196,-500.0,0.00020273,2]
[349826574,1737453063207,-500.0,0.00020273,2]
[349826575,1737453063217,-500.0,0.00020273,2]
[349826576,1737453063227,-500.0,0.00020273,2]
[349826577,1737453063237,-500.0,0.00020273,2]
[349826578,1737453063247,-500.0,0.00020273,2]
[349826579,1737453063257,-1852.7,0.00020273,2]
[349826580,1737453063267,-500.0,0.00020273,2]
[349826581,1737453063277,-500.0,0.00020273,2]
[349826582,1737453063288,-500.0,0.00020273,2]
[349826583,1737453063298,-500.0,0.00020273,2]
[349826584,1737453063308,-500.0,0.00020273,2]
[349826585,1737453063318,-500.0,0.00020273,2]
[349826586,1737453063329,-500.0,0.00020273,2]
[349826587,1737453063339,-500.0,0.00020273,2]
[349826588,1737453063349,-500.0,0.00020273,2]
[349826589,1737453063359,-500.0,0.00020273,2]
[349826590,1737453063369,-522.64785249,0.00020273,2]
[349826591,1737453063379,-500.0,0.00020273,2]
[349826592,1737453063388,-515.34894208,0.00020273,2]
[349826593,1737453063398,-575.72,0.00020273,2]
[349826594,1737453063408,-500.0,0.00020273,2]
[349826595,1737453063419,-500.0,0.00020273,2]
[349826596,1737453063429,-500.0,0.00020273,2]
[349826597,1737453063439,-500.0,0.00020273,2]
[349826598,1737453063451,-500.0,0.00020273,2]
[349826599,1737453063461,-500.0,0.00020273,2]
[349826600,1737453063471,-500.0,0.00020273,2]
[349826601,1737453063481,-500.0,0.00020273,2]
[349826602,1737453063491,-769.26,0.00020273,2]
[349826603,1737453063501,-500.0,0.00020273,2]
[349826604,1737453063511,-500.0,0.00020273,2]
[349826605,1737453063521,-500.0,0.00020273,2]
[349826606,1737453063531,-500.0,0.00020273,2]
[349826607,1737453063541,-500.0,0.00020273,2]
[349826608,1737453063551,-500.0,0.00020273,2]
[349826609,1737453063560,-577.58,0.00020273,2]
[349826610,1737453063570,-500.0,0.00020273,2]
[349826611,1737453063580,-500.0,0.00020273,2]
[349826612,1737453063590,-500.0,0.00020273,2]
[349826613,1737453063600,-500.0,0.00020273,2]
[349826614,1737453063609,-500.0,0.00020273,2]
[349826615,1737453063619,-500.0,0.00020273,2]
[349826616,1737453063629,-500.0,0.00020273,2]
[349826617,1737453063639,-500.0,0.00020273,2]
[349826618,1737453063649,-500.0,0.00020273,2]
[349826619,1737453063659,-500.0,0.00020273,2]
[349826620,1737453063670,-500.0,0.00020273,2]
[349826621,1737453063680,-500.0,0.00020273,2]
[349826622,1737453063690,-500.0,0.00020273,2]
[349826623,1737453063699,-390.53941209,0.00020273,2]
[349826624,1737453063709,-500.0,0.00020273,2]
[349826625,1737453063718,-500.0,0.00020273,2]
[349826626,1737453063728,-500.0,0.00020273,2]
[349826627,1737453063738,-500.0,0.00020273,2]
[349826628,1737453063749,-500.0,0.00020273,2]
[349826629,1737453063760,-500.0,0.00020273,2]
[349826630,1737453063770,-500.0,0.00020273,2]
[349826631,1737453063780,-500.0,0.00020273,2]
[349826632,1737453063790,-500.0,0.00020273,2]
[349826633,1737453063800,-519.89,0.00020273,2]
[349826634,1737453063809,-522.63,0.00020273,2]
[349826635,1737453063819,-500.0,0.00020273,2]
[349826636,1737453063830,-202.68955737,0.00020273,2]
[349826637,1737453063841,-378.99602255,0.00020273,2]
[349826638,1737453063851,-531.00207965,0.00020273,2]
[349826639,1737453063861,-500.0,0.00020273,2]
[349826640,1737453063870,-202.56798499,0.00020273,2]
[349826641,1737453063880,-500.0,0.00020273,2]
[349826642,1737453063890,-500.0,0.00020273,2]
[349826643,1737453063899,-500.0,0.00020273,2]
[349826644,1737453063909,-500.0,0.00020273,2]
[349826645,1737453063921,-1055.98,0.00020273,2]
[349826646,1737453063931,-500.0,0.00020273,2]
[349826647,1737453063941,-922.8,0.00020273,2]
[349826648,1737453063951,-508.46381252,0.00020273,2]
[349826649,1737453063961,-500.0,0.00020273,2]
[349826650,1737453063972,-500.0,0.00020273,2]
[349826651,1737453063981,-500.0,0.00020273,2]
[349826652,1737453063990,-500.0,0.00020273,2]
[349826653,1737453064000,-500.0,0.00020273,2]
[349826654,1737453064009,-171.21512633,0.00020273,2]
[349826655,1737453064019,-698.92,0.00020273,2]
[349826656,1737453064028,-205.26655479,0.00020273,2]
[349826657,1737453064038,-500.0,0.00020273,2]
[349826658,1737453064048,-500.0,0.00020273,2]
[349826659,1737453064058,-500.0,0.00020273,2]
[349826660,1737453064067,-500.0,0.00020273,2]
[349826661,1737453064076,-500.0,0.00020273,2]
[349826662,1737453064086,-500.0,0.00020273,2]
[349826663,1737453064096,-500.0,0.00020273,2]
[349826664,1737453064106,-500.0,0.00020273,2]
[349826665,1737453064115,-500.0,0.00020273,2]
[349826666,1737453064124,-500.0,0.00020273,2]
[349826667,1737453064134,-500.0,0.00020273,2]
[349826668,1737453064144,-500.0,0.00020273,2]
[349826669,1737453064154,-516.81115305,0.00020273,2]
[349826670,1737453064163,-949.13,0.00020273,2]
[349826671,1737453064178,-500.0,0.00020273,2]
[349826672,1737453064187,-500.0,0.00020273,2]
[349826673,1737453064197,-632.61,0.00020273,2]
[349826674,1737453064207,-500.0,0.00020273,2]
[349826675,1737453064216,-500.0,0.00020273,2]
[349826676,1737453064226,-500.0,0.00020273,2]
[349826677,1737453064236,-500.0,0.00020273,2]
[349826678,1737453064246,-500.0,0.00020273,2]
[349826679,1737453064255,-500.0,0.00020273,2]
[349826680,1737453064265,-500.0,0.00020273,2]
[349826681,1737453064274,-604.14538419,0.00020273,2]
[349826682,1737453064283,-500.0,0.00020273,2]
[349826683,1737453064293,-513.99166815,0.00020273,2]
[349826684,1737453064302,-500.0,0.00020273,2]
[349826685,1737453064406,-543.93062594,0.00020273,2]
[349826686,1737453064419,-500.37,0.00020273,2]
[349826687,1737453064429,-500.0,0.00020273,2]
[349826688,1737453064438,-500.0,0.00020273,2]
[349826689,1737453064449,-500.0,0.00020273,2]
[349826690,1737453064459,-500.0,0.00020273,2]
[349826691,1737453064469,-534.504669,0.00020273,2]
[349826692,1737453064479,-500.0,0.00020273,2]
[349826693,1737453064489,-602.49,0.00020273,2]
[349826694,1737453064499,-500.0,0.00020273,2]
[349826695,1737453064509,-500.0,0.00020273,2]
[349826696,1737453064518,-500.0,0.00020273,2]
[349826697,1737453064529,-510.42838315,0.00020273,2]
[349826698,1737453064539,-500.0,0.00020273,2]
[349826699,1737453064549,-500.0,0.00020273,2]
[349826700,1737453064558,-199.37764848,0.00020273,2]
[349826701,1737453064567,-500.0,0.00020273,2]
[349826702,1737453064577,-500.0,0.00020273,2]
[349826703,1737453064586,-500.0,0.00020273,2]
[349826704,1737453064595,-500.0,0.00020273,2]
[349826705,1737453064605,-500.0,0.00020273,2]
[349826706,1737453064614,-855.720455,0.00020273,2]
[349826707,1737453064624,-515.35,0.00020273,2]
[349826708,1737453064634,-500.0,0.00020273,2]
[349826709,1737453064643,-500.0,0.00020273,2]
[349826710,1737453064652,-158.602003,0.00020273,2]
[349826711,1737453064662,-500.0,0.00020273,2]
[349826712,1737453064675,-500.0,0.00020273,2]
[349826713,1737453064685,-500.0,0.00020273,2]
[349826714,1737453064694,-500.0,0.00020273,2]
[349826715,1737453064704,-341.04331697,0.00020273,2]
[349826716,1737453064714,-500.0,0.00020273,2]
[349826717,1737453064724,-500.0,0.00020273,2]
[349826718,1737453064733,-500.0,0.00020273,2]
[349826719,1737453064743,-500.0,0.00020273,2]
[349826720,1737453064756,-500.0,0.00020273,2]
[349826721,1737453064766,-500.0,0.00020273,2]
[349826722,1737453064775,-500.0,0.00020273,2]
[349826723,1737453064785,-500.0,0.00020273,2]
[349826724,1737453064795,-500.0,0.00020273,2]
[349826725,1737453064804,-500.0,0.00020273,2]
[349826726,1737453064814,-500.0,0.00020273,2]
[349826727,1737453064824,-162.50461615,0.00020273,2]
[349826728,1737453064833,-500.0,0.00020273,2]
[349826729,1737453064843,-500.0,0.00020273,2]
[349826730,1737453064851,-500.0,0.00020273,2]
[349826731,1737453064860,-500.0,0.00020273,2]
[349826732,1737453064869,-500.0,0.00020273,2]
[349826733,1737453064879,-511.02399426,0.00020273,2]
[349826734,1737453064888,-526.06,0.00020273,2]
[349826735,1737453064897,-500.0,0.00020273,2]
[349826736,1737453064907,-500.0,0.00020273,2]
[349826737,1737453064916,-500.0,0.00020273,2]
[349826738,1737453064927,-500.0,0.00020273,2]
[349826739,1737453064936,-500.0,0.00020273,2]
[349826740,1737453064946,-500.0,0.00020273,2]
[349826741,1737453064955,-500.0,0.00020273,2]
[349826742,1737453064964,-500.0,0.00020273,2]
[349826743,1737453064974,-500.0,0.00020273,2]
[349826744,1737453064983,-608.3,0.00020273,2]
[349826745,1737453064992,-662.46,0.00020273,2]
[349826746,1737453065002,-500.0,0.00020273,2]
[349826747,1737453065011,-500.0,0.00020273,2]
[349826748,1737453065020,-500.0,0.00020273,2]
[349826749,1737453065029,-500.0,0.00020273,2]
[349826750,1737453065038,-500.0,0.00020273,2]
[349826751,1737453065046,-500.0,0.00020273,2]
[349826752,1737453065055,-500.0,0.00020273,2]
[349826753,1737453065064,-500.0,0.00020273,2]
[349826754,1737453065073,-500.0,0.00020273,2]
[349826755,1737453065082,-500.0,0.00020273,2]
[349826756,1737453065091,-522.62894212,0.00020273,2]
[349826757,1737453065100,-500.0,0.00020273,2]
[349826758,1737453065109,-547.52,0.00020273,2]
[349826759,1737453065119,-500.0,0.00020273,2]
[349826760,1737453065127,-500.0,0.00020273,2]
[349826761,1737453065136,-500.0,0.00020273,2]
[349826762,1737453065145,-500.0,0.00020273,2]
[349826763,1737453065154,-623.36,0.00020273,2]
[349826764,1737453065163,-500.0,0.00020273,2]
[349826765,1737453065175,-500.0,0.00020273,2]
[349826766,1737453065184,-500.0,0.00020273,2]
[349826767,1737453065194,-500.0,0.00020273,2]
[349826768,1737453065203,-500.0,0.00020273,2]
[349826769,1737453065212,-503.50850436,0.00020273,2]
[349826770,1737453065221,-500.0,0.00020273,2]
[349826771,1737453065231,-508.99974634,0.00020273,2]
[349826772,1737453065239,-500.0,0.00020273,2]
[349826773,1737453065249,-500.0,0.00020273,2]
[349826774,1737453065258,-576.69,0.00020273,2]
[349826775,1737453065267,-500.0,0.00020273,2]
[349826776,1737453065276,-500.0,0.00020273,2]
[349826777,1737453065286,-500.0,0.00020273,2]
[349826778,1737453065295,-500.0,0.00020273,2]
[349826779,1737453065304,-500.0,0.00020273,2]
[349826780,1737453065313,-500.0,0.00020273,2]
[349826781,1737453065323,-500.0,0.00020273,2]
[349826782,1737453065332,-500.0,0.00020273,2]
[349826783,1737453065341,-500.0,0.00020273,2]
[349826784,1737453065351,-500.0,0.00020273,2]
[349826785,1737453065360,-500.0,0.00020273,2]
[349826786,1737453065369,-310.50373551,0.00020273,2]
[349826787,1737453065380,-508.60894906,0.00020273,2]
[349826788,1737453065389,-500.0,0.00020273,2]
[349826789,1737453065398,-300.0,0.00020273,2]
[349826790,1737453065407,-500.0,0.00020273,2]
[349826791,1737453065418,-500.0,0.00020273,2]
[349826792,1737453065427,-500.0,0.00020273,2]
[349826793,1737453065437,-503.93290884,0.00020273,2]
[349826794,1737453065447,-500.0,0.00020273,2]
[349826795,1737453065456,-705.57,0.00020273,2]
[349826796,1737453065465,-238.29,0.00020273,2]
[349826797,1737453065483,-508.34,0.00020273,2]
[349826798,1737453065492,-500.0,0.00020273,2]
[349826799,1737453065502,-788.13,0.00020273,2]
[349826800,1737453065511,-500.0,0.00020273,2]
[349826801,1737453065521,-547.30848051,0.00020273,2]
[349826802,1737453065530,-500.0,0.00020273,2]
[349826803,1737453065539,-1172.49,0.00020273,2]
[349826804,1737453065548,-507.49,0.00020273,2]
[349826805,1737453065557,-500.0,0.00020273,2]
[349826806,1737453065566,-761.5,0.00020273,2]
[349826807,1737453065575,-500.0,0.00020273,2]
[349826808,1737453065585,-500.0,0.00020273,2]
[349826809,1737453065594,-500.0,0.00020273,2]
[349826810,1737453065603,-500.0,0.00020273,2]
[349826811,1737453065612,-3672.11,0.00020273,2]
[349826812,1737453065621,-500.0,0.00020273,2]
[349826813,1737453065630,-500.0,0.00020273,2]
[349826814,1737453065639,-500.0,0.00020273,2]
[349826815,1737453065648,-2841.84,0.00020273,2]
[349826816,1737453065657,-159.40303725,0.00020273,2]
[349826817,1737453065667,-621.54448458,0.00020273,2]
[349826818,1737453065676,-500.0,0.00020273,2]
[349826819,1737453065686,-1974.21,0.00020273,2]
[349826820,1737453065695,-500.0,0.00020273,2]
[349826821,1737453065704,-1158.66,0.00020273,2]
[349826822,1737453065713,-628.17,0.00020273,2]
[349826823,1737453065722,-500.0,0.00020273,2]
[349826824,1737453065731,-500.0,0.00020273,2]
[349826825,1737453065741,-910.49,0.00020273,2]
[349826826,1737453065751,-500.0,0.00020273,2]
[349826827,1737453065760,-8504.98,0.00020273,2]
[349826828,1737453065769,-500.0,0.00020273,2]
[349826829,1737453065778,-1875.9,0.00020273,2]
[349826830,1737453065874,-500.0,0.00020273,2]
[349826831,1737453065884,-1593.64,0.00020273,2]
[349826832,1737453065895,-826.77,0.00020273,2]
[349826833,1737453065905,-500.0,0.00020273,2]
[349826834,1737453065915,-500.0,0.00020273,2]
[349826835,1737453065925,-648.73,0.00020273,2]
[349826836,1737453065935,-1235.86,0.00020273,2]
[349826837,1737453065944,-500.0,0.00020273,2]
[349826838,1737453065953,-500.0,0.00020273,2]
[349826839,1737453065962,-500.0,0.00020273,2]
[349826840,1737453065971,-1175.52,0.00020273,2]
[349826841,1737453065980,-500.0,0.00020273,2]
[349826842,1737453065989,-500.0,0.00020273,2]
[349826843,1737453065999,-427.87022911,0.00020273,2]
[349826844,1737453066008,-500.0,0.00020273,2]
[349826845,1737453066017,-1631.61,0.00020273,2]
[349826846,1737453066026,-508.77761903,0.00020273,2]
[349826847,1737453066036,-481.52771057,0.00020273,2]
[349826848,1737453066052,-651.5,0.00020273,2]
[349826849,1737453066063,-500.0,0.00020273,2]
[349826850,1737453066073,-696.16,0.00020273,2]
[349826851,1737453066083,-333.19629098,0.00020273,2]
[349826852,1737453066093,-802.48,0.00020273,2]
[349826853,1737453066102,-500.0,0.00020273,2]
[349826854,1737453066112,-500.0,0.00020273,2]
[349826855,1737453066121,-802.07,0.00020273,2]
[349826856,1737453066131,-500.0,0.00020273,2]
[349826857,1737453066141,-500.0,0.00020273,2]
[349826858,1737453066151,-1285.14,0.00020273,2]
[349826859,1737453066161,-1752.0,0.00020273,2]
[349826860,1737453066171,-516.93864431,0.00020273,2]
[349826861,1737453066180,-500.0,0.00020273,2]
[349826862,1737453066190,-975.02,0.00020273,2]
[349826863,1737453066200,-500.0,0.00020273,2]
[349826864,1737453066210,-500.0,0.00020273,2]
[349826865,1737453066219,-500.0,0.00020273,2]
[349826866,1737453066229,-1426.9,0.00020273,2]
[349826867,1737453066238,-500.0,0.00020273,2]
[349826868,1737453066247,-500.0,0.00020273,2]
[349826869,1737453066257,-500.0,0.00020273,2]
[349826870,1737453066266,-500.0,0.00020273,2]
[349826871,1737453066276,-500.0,0.00020273,2]
[349826872,1737453066285,-500.0,0.00020273,2]
[349826873,1737453066295,-500.0,0.00020273,2]
[349826874,1737453066304,-574.98,0.00020273,2]
[349826875,1737453066314,-513.29686804,0.00020273,2]
[349826876,1737453066323,-500.0,0.00020273,2]
[349826877,1737453066333,-515.49,0.00020273,2]
[349826878,1737453066342,-500.0,0.00020273,2]
[349826879,1737453066351,-500.0,0.00020273,2]
[349826880,1737453066360,-500.0,0.00020273,2]
[349826881,1737453066370,-1497.19,0.00020273,2]
[349826882,1737453066379,-532.56261785,0.00020273,2]
[349826883,1737453066388,-1061.57,0.00020273,2]
[349826884,1737453066398,-500.0,0.00020273,2]
[349826885,1737453066407,-500.0,0.00020273,2]
[349826886,1737453066417,-500.0,0.00020273,2]
[349826887,1737453066428,-500.0,0.00020273,2]
[349826888,1737453066437,-1810.13,0.00020273,2]
[349826889,1737453066448,-500.0,0.00020273,2]
[349826890,1737453066458,-500.0,0.00020273,2]
[349826891,1737453066468,-500.0,0.00020273,2]
[349826892,1737453066478,-500.0,0.00020273,2]
[349826893,1737453066487,-2047.13,0.00020273,2]
[349826894,1737453066496,-794.2,0.00020273,2]
[349826895,1737453066506,-2863.94,0.00020273,2]
[349826896,1737453066515,-510.94846473,0.00020273,2]
[349826897,1737453066528,-772.25,0.00020273,2]
[349826898,1737453066546,-1251.75,0.00020273,2]
[349826899,1737453066563,-500.0,0.00020273,2]
[349826900,1737453066583,-500.0,0.00020273,2]
[349826901,1737453066597,-660.36,0.00020273,2]
[349826902,1737453066613,-500.0,0.00020273,2]
[349826903,1737453066631,-420.66781806,0.00020273,2]
[349826904,1737453066649,-616.64,0.00020273,2]
[349826905,1737453066668,-500.0,0.00020273,2]
[349826906,1737453066685,-1546.15,0.00020273,2]
[349826907,1737453066704,-500.0,0.00020273,2]
[349826908,1737453066719,-500.0,0.00020273,2]
[349826909,1737453066732,-500.0,0.00020273,2]
[349826910,1737453066752,-1902.27,0.00020273,2]
[349826911,1737453066766,-500.0,0.00020273,2]
[349826912,1737453066782,-500.0,0.00020273,2]
[349826913,1737453066796,-2420.73,0.00020273,2]
[349826914,1737453066811,-1018.36,0.00020273,2]
[349826915,1737453066825,-500.0,0.00020273,2]
[349826916,1737453066840,-500.0,0.00020273,2]
[349826917,1737453066855,-500.0,0.00020273,2]
[349826918,1737453066870,-500.0,0.00020273,2]
[349826919,1737453066885,-582.48,0.00020273,2]
[349826920,1737453066899,-3026.82,0.00020273,2]
[349826921,1737453066914,-500.0,0.00020273,2]
[349826922,1737453066931,-1503.31,0.00020273,2]
[349826923,1737453066946,-500.0,0.00020273,2]
[349826924,1737453066961,-1719.86,0.00020273,2]
[349826925,1737453066976,-500.0,0.00020273,2]
[349826926,1737453066990,-500.0,0.00020273,2]
[349826927,1737453067005,-500.0,0.00020273,2]
[349826928,1737453067019,-500.0,0.00020273,2]
[349826929,1737453067034,-544.81,0.00020273,2]
[349826930,1737453067049,-500.0,0.00020273,2]
[349826931,1737453067063,-500.0,0.00020273,2]
[349826932,1737453067078,-500.0,0.00020273,2]
[349826933,1737453067092,-582.92,0.00020273,2]
[349826934,1737453067107,-500.0,0.00020273,2]
[349826935,1737453067122,-1092.14,0.00020273,2]
[349826936,1737453067137,-500.0,0.00020273,2]
[349826937,1737453067151,-500.0,0.00020273,2]
[349826938,1737453067167,-500.0,0.00020273,2]
[349826939,1737453067184,-500.0,0.00020273,2]
[349826940,1737453067200,-1250.96,0.00020273,2]
[349826941,1737453067215,-1136.38,0.00020273,2]
[349826942,1737453067230,-1590.94,0.00020273,2]
[349826943,1737453067245,-500.0,0.00020273,2]
[349826944,1737453067260,-504.41709734,0.00020273,2]
[349826945,1737453067275,-500.0,0.00020273,2]
[349826946,1737453067289,-500.0,0.00020273,2]
[349826947,1737453067304,-2747.31,0.00020273,2]
[349826948,1737453067318,-500.0,0.00020273,2]
[349826949,1737453067332,-500.0,0.00020273,2]
[349826950,1737453067347,-500.0,0.00020273,2]
[349826951,1737453067363,-3033.52,0.00020273,2]
[349826952,1737453067379,-2010.66,0.00020273,2]
[349826953,1737453067394,-500.0,0.00020273,2]
[349826954,1737453067409,-500.0,0.00020273,2]
[349826955,1737453067424,-685.44,0.00020273,2]
[349826956,1737453067438,-973.66,0.00020273,2]
[349826957,1737453067455,-500.0,0.00020273,2]
[349826958,1737453067470,-500.0,0.00020273,2]
[349826959,1737453067485,-1123.99,0.00020273,2]
[349826960,1737453067500,-500.0,0.00020273,2]
[349826961,1737453067514,-589.01,0.00020273,2]
[349826962,1737453067529,-500.0,0.00020273,2]
[349826963,1737453067666,-1065.57,0.00020273,2]
[349826964,1737453067681,-500.0,0.00020273,2]
[349826965,1737453067691,-500.0,0.00020273,2]
[349826966,1737453067701,-500.0,0.00020273,2]
[349826967,1737453067711,-984.06,0.00020273,2]
[349826968,1737453067721,-1101.11,0.00020273,2]